lending/lending_fUSD_20250706
["ID","MTS","AMOUNT","RATE_DAILY","PERIOD"]
[369953877,1751795452625,-460.0,0.00019178,2]
[369953878,1751795452634,-460.0,0.00019178,2]
[369953879,1751795452644,-1023.83,0.00019178,2]
[369953880,1751795452653,-460.0,0.00019178,2]
[369953881,1751795452662,-819.45,0.00019178,2]
[369953882,1751795452672,-500.0,0.00019178,2]
[369953883,1751795452681,-460.0,0.00019178,2]
[369953884,1751795452691,-460.0,0.00019178,2]
[369953885,1751795452700,-500.0,0.00019178,2]
[369953887,1751795452710,-460.0,0.00019178,2]
[369953888,1751795452720,-460.0,0.00019178,2]
[369953889,1751795452729,-500.0,0.00019178,2]
[369953890,1751795452739,-500.0,0.00019178,2]
[369953891,1751795452749,-460.0,0.00019178,2]
[369953892,1751795452759,-571.44051519,0.00019178,2]
[369953893,1751795452768,-503.00508391,0.00019178,2]
[369953894,1751795452778,-460.0,0.00019178,2]
[369953895,1751795452787,-460.0,0.00019178,2]
[369953896,1751795452796,-489.94,0.00019178,2]
[369953897,1751795452805,-460.0,0.00019178,2]
[369953898,1751795452815,-460.0,0.00019178,2]
[369953899,1751795452829,-460.0,0.00019178,2]
[369953900,1751795452839,-461.59749881,0.00019178,2]
[369953901,1751795452848,-460.0,0.00019178,2]
[369953903,1751795452858,-645.04,0.00019178,2]
[369953905,1751795452867,-960.93,0.00019178,2]
[369953906,1751795452876,-539.0,0.00019178,2]
[369953908,1751795452885,-460.0,0.00019178,2]
[369953910,1751795452895,-663.13,0.00019178,2]
[369953912,1751795452905,-460.0,0.00019178,2]
[369953914,1751795452916,-460.0,0.00019178,2]
[369953916,1751795452925,-4118.48,0.00019178,2]
[369953918,1751795452935,-460.0,0.00019178,2]
[369953920,1751795452944,-460.0,0.00019178,2]
[369953922,1751795452953,-460.0,0.00019178,2]
[369953924,1751795452962,-1109.64,0.00019178,2]
[369953926,1751795452972,-1380.21,0.00019178,2]
[369953928,1751795452981,-460.0,0.00019178,2]
[369953930,1751795452990,-460.0,0.00019178,2]
[369953932,1751795452999,-460.0,0.00019178,2]
[369953933,1751795453009,-460.0,0.00019178,2]
[369953934,1751795453018,-1230.66,0.00019178,2]
[369953935,1751795453028,-592.08,0.00019178,2]
[369953936,1751795453037,-460.0,0.00019178,2]
[369953937,1751795453046,-460.0,0.00019178,2]
[369953938,1751795453056,-619.25,0.00019178,2]
[369953939,1751795453066,-2974.86,0.00019178,2]
[369953940,1751795453075,-1145.17,0.00019178,2]
[369953941,1751795453085,-598.01,0.00019178,2]
[369953942,1751795453094,-6950.17,0.00019178,2]
[369953943,1751795453103,-151.0,0.00019178,2]
[369953944,1751795453113,-151.0,0.00019178,2]
[369953945,1751795453123,-487.24668259,0.00019178,2]
[369953946,1751795453132,-151.0,0.00019178,2]
[369953947,1751795453141,-300.0,0.00019178,2]
[369953948,1751795453151,-151.0,0.00019178,2]
[369953949,1751795453160,-707.72,0.00019178,2]
[369953950,1751795453169,-460.0,0.00019178,2]
[369953951,1751795453179,-627.71,0.00019178,2]
[369953952,1751795453188,-151.0,0.00019178,2]
[369953953,1751795453197,-460.0,0.00019178,2]
[369953954,1751795453207,-331.60444597,0.00019178,2]
[369953955,1751795453216,-460.0,0.00019178,2]
[369953956,1751795453225,-460.0,0.00019178,2]
[369953957,1751795453234,-460.0,0.00019178,2]
[369953959,1751795453245,-460.0,0.00019178,2]
[369953961,1751795453254,-664.11,0.00019178,2]
[369953962,1751795453263,-642.58,0.00019178,2]
[369953963,1751795453273,-460.0,0.00019178,2]
[369953964,1751795453283,-497.39,0.00019178,2]
[369953965,1751795453292,-460.0,0.00019178,2]
[369953966,1751795453301,-460.0,0.00019178,2]
[369953967,1751795453311,-460.0,0.00019178,2]
[369953968,1751795453320,-519.79,0.00019178,2]
[369953969,1751795453329,-460.0,0.00019178,2]
[369953970,1751795453338,-649.22,0.00019178,2]
[369953971,1751795453348,-460.0,0.00019178,2]
[369953972,1751795453359,-709.75,0.00019178,2]
[369953973,1751795453368,-460.0,0.00019178,2]
[369953974,1751795453377,-460.0,0.00019178,2]
[369953975,1751795453387,-460.0,0.00019178,2]
[369953976,1751795453396,-460.0,0.00019178,2]
[369953977,1751795453406,-460.0,0.00019178,2]
[369953978,1751795453415,-732.45,0.00019178,2]
[369953980,1751795453425,-460.0,0.00019178,2]
[369953982,1751795453434,-865.0,0.00019178,2]
[369953983,1751795453443,-460.0,0.00019178,2]
[369953985,1751795453453,-460.0,0.00019178,2]
[369953987,1751795453462,-460.0,0.00019178,2]
[369953989,1751795453471,-460.0,0.00019178,2]
[369953990,1751795453481,-460.0,0.00019178,2]
[369953991,1751795453490,-460.0,0.00019178,2]
[369953992,1751795453499,-460.0,0.00019178,2]
[369953993,1751795453509,-460.0,0.00019178,2]
[369953994,1751795453518,-460.0,0.00019178,2]
[369953995,1751795453528,-549.83,0.00019178,2]
[369953996,1751795453541,-2353.86,0.00019178,2]
[369953997,1751795453550,-1599.81,0.00019178,2]
[369953998,1751795453560,-664.48,0.00019178,2]
[369953999,1751795453570,-1418.64,0.00019178,2]
[369954000,1751795453579,-460.0,0.00019178,2]
[369954001,1751795453589,-804.61,0.00019178,2]
[369954002,1751795453599,-460.0,0.00019178,2]
[369954003,1751795453608,-460.0,0.00019178,2]
[369954004,1751795453618,-460.0,0.00019178,2]
[369954005,1751795453627,-460.0,0.00019178,2]
[369954006,1751795453637,-586.59140599,0.00019178,2]
[369954007,1751795453647,-460.0,0.00019178,2]
[369954008,1751795453657,-460.0,0.00019178,2]
[369954009,1751795453666,-7712.22,0.00019178,2]
[369954010,1751795453676,-661.58,0.00019178,2]
[369954011,1751795453685,-460.0,0.00019178,2]
[369954012,1751795453695,-460.0,0.00019178,2]
[369954013,1751795453704,-527.81493419,0.00019178,2]
[369954014,1751795453714,-460.0,0.00019178,2]
[369954015,1751795453723,-460.0,0.00019178,2]
[369954016,1751795453732,-474.94,0.00019178,2]
[369954017,1751795453742,-460.0,0.00019178,2]
[369954018,1751795453751,-460.0,0.00019178,2]
[369954019,1751795453760,-500.0,0.00019178,2]
[369954020,1751795453770,-500.0,0.00019178,2]
[369954021,1751795453779,-460.0,0.00019178,2]
[369954022,1751795453789,-500.0,0.00019178,2]
[369954023,1751795453798,-677.9,0.00019178,2]
[369954024,1751795453807,-1223.69,0.00019178,2]
[369954025,1751795453817,-495.61549425,0.00019178,2]
[369954026,1751795453830,-468.08,0.00019178,2]
[369954027,1751795453839,-460.0,0.00019178,2]
[369954028,1751795453848,-460.0,0.00019178,2]
[369954029,1751795453858,-460.0,0.00019178,2]
[369954030,1751795453867,-4266.06,0.00019178,2]
[369954031,1751795453876,-460.0,0.00019178,2]
[369954032,1751795453886,-499.46132762,0.00019178,2]
[369954033,1751795453896,-460.0,0.00019178,2]
[369954034,1751795453908,-657.7,0.00019178,2]
[369954035,1751795453918,-460.0,0.00019178,2]
[369954036,1751795453928,-460.0,0.00019178,2]
[369954037,1751795453938,-460.0,0.00019178,2]
[369954038,1751795453948,-634.53,0.00019178,2]
[369954039,1751795453957,-460.43384134,0.00019178,2]
[369954040,1751795453967,-460.0,0.00019178,2]
[369954041,1751795453976,-460.0,0.00019178,2]
[369954042,1751795453989,-460.0,0.00019178,2]
[369954043,1751795453998,-460.0,0.00019178,2]
[369954044,1751795454008,-460.0,0.00019178,2]
[369954045,1751795454017,-490.0,0.00019178,2]
[369954046,1751795454026,-1383.9,0.00019178,2]
[369954047,1751795454035,-460.0,0.00019178,2]
[369954048,1751795454045,-460.0,0.00019178,2]
[369954049,1751795454055,-505.52,0.00019178,2]
[369954050,1751795454064,-463.6,0.00019178,2]
[369954051,1751795454073,-474.8,0.00019178,2]
[369954052,1751795454083,-460.0,0.00019178,2]
[369954053,1751795454092,-460.0,0.00019178,2]
[369954054,1751795454102,-460.0,0.00019178,2]
[369954055,1751795454111,-460.0,0.00019178,2]
[369954056,1751795454121,-1171.52,0.00019178,2]
[369954057,1751795454130,-460.0,0.00019178,2]
[369954058,1751795454139,-460.0,0.00019178,2]
[369954059,1751795454149,-502.25,0.00019178,2]
[369954060,1751795454158,-460.0,0.00019178,2]
[369954061,1751795454168,-460.0,0.00019178,2]
[369954062,1751795454178,-1014.13,0.00019178,2]
[369954063,1751795454188,-460.0,0.00019178,2]
[369954064,1751795454197,-492.42425959,0.00019178,2]
[369954065,1751795454207,-1310.27,0.00019178,2]
[369954066,1751795454216,-460.0,0.00019178,2]
[369954067,1751795454225,-500.0,0.00019178,2]
[369954068,1751795454234,-2096.06,0.00019178,2]
[369954069,1751795454243,-500.0,0.00019178,2]
[369954070,1751795454253,-500.0,0.00019178,2]
[369954071,1751795454262,-500.0,0.00019178,2]
[369954072,1751795454272,-460.0,0.00019178,2]
[369954073,1751795454281,-500.0,0.00019178,2]
[369954074,1751795454291,-460.0,0.00019178,2]
[369954075,1751795454301,-460.0,0.00019178,2]
[369954076,1751795454311,-456.79381423,0.00019178,2]
[369954077,1751795454320,-460.0,0.00019178,2]
[369954078,1751795454329,-490.0,0.00019178,2]
[369954079,1751795454339,-659.86,0.00019178,2]
[369954080,1751795454348,-460.0,0.00019178,2]
[369954081,1751795454358,-460.0,0.00019178,2]
[369954082,1751795454367,-460.0,0.00019178,2]
[369954083,1751795454376,-460.0,0.00019178,2]
[369954084,1751795454386,-460.0,0.00019178,2]
[369954085,1751795454396,-168.97101481,0.00019178,2]
[369954086,1751795454405,-2934.26,0.00019178,2]
[369954087,1751795454415,-1005.09,0.00019178,2]
[369954088,1751795454424,-460.0,0.00019178,2]
[369954089,1751795454433,-460.0,0.00019178,2]
[369954090,1751795454443,-460.0,0.00019178,2]
[369954091,1751795454452,-721.06,0.00019178,2]
[369954092,1751795454461,-519.76,0.00019178,2]
[369954093,1751795454471,-460.0,0.00019178,2]
[369954094,1751795454480,-462.24,0.00019178,2]
[369954095,1751795454490,-460.0,0.00019178,2]
[369954096,1751795454500,-237.07268292,0.00019178,2]
[369954097,1751795454509,-699.75,0.00019178,2]
[369954098,1751795454519,-507.93201924,0.00019178,2]
[369954099,1751795454528,-460.0,0.00019178,2]
[369954100,1751795454538,-460.0,0.00019178,2]
[369954101,1751795454548,-589.57,0.00019178,2]
[369954102,1751795454558,-460.0,0.00019178,2]
[369954103,1751795454567,-581.14,0.00019178,2]
[369954104,1751795454576,-460.0,0.00019178,2]
[369954105,1751795454586,-460.0,0.00019178,2]
[369954106,1751795454596,-795.52,0.00019178,2]
[369954107,1751795454605,-460.0,0.00019178,2]
[369954108,1751795454615,-460.0,0.00019178,2]
[369954109,1751795454624,-493.23756139,0.00019178,2]
[369954110,1751795454634,-484.75,0.00019178,2]
[369954111,1751795454644,-460.0,0.00019178,2]
[369954112,1751795454653,-460.0,0.00019178,2]
[369954113,1751795454662,-460.0,0.00019178,2]
[369954114,1751795454672,-460.0,0.00019178,2]
[369954115,1751795454681,-460.0,0.00019178,2]
[369954116,1751795454690,-1225.2,0.00019178,2]
[369954117,1751795454701,-579.88,0.00019178,2]
[369954118,1751795454711,-460.0,0.00019178,2]
[369954119,1751795454720,-460.0,0.00019178,2]
[369954120,1751795454729,-460.88124453,0.00019178,2]
[369954121,1751795454738,-460.0,0.00019178,2]
[369954122,1751795454748,-460.0,0.00019178,2]
[369954123,1751795454757,-460.0,0.00019178,2]
[369954124,1751795454766,-461.46100248,0.00019178,2]
[369954125,1751795454775,-589.59,0.00019178,2]
[369954126,1751795454785,-460.0,0.00019178,2]
[369954127,1751795454795,-460.0,0.00019178,2]
[369954128,1751795454804,-460.0,0.00019178,2]
[369954129,1751795454814,-460.0,0.00019178,2]
[369954130,1751795454826,-460.0,0.00019178,2]
[369954131,1751795454835,-460.0,0.00019178,2]
[369954132,1751795454844,-460.0,0.00019178,2]
[369954133,1751795454854,-460.0,0.00019178,2]
[369954134,1751795454863,-460.0,0.00019178,2]
[369954135,1751795454872,-1436.38,0.00019178,2]
[369954136,1751795454881,-460.0,0.00019178,2]
[369954137,1751795454890,-460.0,0.00019178,2]
[369954138,1751795454899,-241.43737432,0.00019178,2]
[369954139,1751795454908,-460.0,0.00019178,2]
[369954140,1751795454917,-460.0,0.00019178,2]
[369954141,1751795454926,-460.0,0.00019178,2]
[369954142,1751795454935,-1345.48,0.00019178,2]
[369954143,1751795454944,-460.0,0.00019178,2]
[369954144,1751795454953,-158.51524369,0.00019178,2]
[369954145,1751795454963,-248.65273393,0.00019178,2]
[369954146,1751795454972,-150.49713546,0.0001918,2]
[369954147,1751795454983,-500.0,0.00019199,2]
[369954148,1751795454992,-500.0,0.00019199,2]
[369954149,1751795455002,-500.0,0.00019199,2]
[369954150,1751795455011,-1410.9263788,0.000192,2]
[369954151,1751795455021,-357.7833095,0.000192,2]
[369954152,1751795455030,-89185.36173008,0.000192,2]
[369954153,1751795455039,-848.58217656,0.000192,2]
[369954154,1751795455048,-151.0,0.000192,2]
[369954155,1751795455057,-349.0,0.00019218,2]
[369954156,1751795455067,-168.0,0.00019232,2]
[369954157,1751795455075,-349.0,0.00019243,2]
[369954158,1751795455085,-600.0,0.00019256,2]
[369954159,1751795455094,-600.0,0.00019256,2]
[369954160,1751795455104,-349.0,0.00019257,2]
[369954161,1751795455114,-211.0,0.0001926,2]
[369954162,1751795455125,-836.76783547,0.00019277,2]
[369954163,1751795455136,-1157.25545185,0.00019297,2]
[369954164,1751795455145,-349.0,0.00019298,2]
[369954165,1751795455155,-349.0,0.00019298,2]
[369954166,1751795455164,-500.0,0.00019299,2]
[369954167,1751795455173,-573.47,0.00019299,2]
[369954168,1751795455183,-500.0,0.00019299,2]
[369954169,1751795455192,-10119.39850508,0.000193,2]
[369954170,1751795455202,-500.0,0.00019305,2]
[369954171,1751795455211,-49052.88704751,0.00019306,2]
[369954172,1751795455220,-1410.9263788,0.00019321,2]
[369954173,1751795455230,-357.7833095,0.00019321,2]
[369954174,1751795455239,-184.17564342,0.00019338,2]
[369954175,1751795455248,-500.0,0.00019338,2]
[369954176,1751795455257,-180.33839065,0.00019338,2]
[369954177,1751795455267,-368.46197888,0.00019338,2]
[369954178,1751795455276,-500.0,0.00019338,2]
[369954179,1751795455285,-19014.86,0.00019339,2]
[369954180,1751795455295,-230.02,0.00019339,2]
[369954181,1751795455304,-150.99,0.00019339,2]
[369954182,1751795455313,-993.72,0.00019339,2]
[369954183,1751795455322,-280.54,0.00019339,2]
[369954184,1751795455332,-287.59252902,0.00019352,2]
[369954185,1751795455341,-154.75766542,0.00019352,2]
[369954186,1751795455351,-210.28571445,0.00019368,2]
[369954187,1751795455360,-10000.0,0.000194,4]
[369954188,1751795455369,-500.0,0.000194,2]
[369954189,1751795455378,-500.0,0.000194,2]
[369954190,1751795455387,-500.0,0.000194,2]
[369954191,1751795455397,-500.0,0.000194,2]
[369954192,1751795455405,-500.0,0.000194,2]
[369954193,1751795455414,-500.0,0.000194,2]
[369954194,1751795455424,-500.0,0.000194,2]
[369954195,1751795455433,-500.0,0.000194,2]
[369954196,1751795455442,-500.0,0.000194,2]
[369954197,1751795455451,-500.0,0.000194,2]
[369954198,1751795455461,-500.0,0.000194,2]
[369954199,1751795455470,-151.0,0.000194,2]
[369954200,1751795455479,-500.0,0.000194,2]
[369954201,1751795455488,-500.0,0.000194,2]
[369954202,1751795455497,-500.0,0.000194,2]
[369954203,1751795455507,-500.0,0.000194,2]
[369954204,1751795455516,-500.0,0.000194,2]
[369954205,1751795455525,-500.0,0.000194,2]
[369954206,1751795455534,-500.0,0.000194,2]
[369954207,1751795455544,-500.0,0.000194,2]
[369954208,1751795455553,-500.0,0.000194,2]
[369954209,1751795455759,-500.0,0.000194,2]
[369954210,1751795455769,-500.0,0.000194,2]
[369954211,1751795455779,-500.0,0.000194,2]
[369954212,1751795455788,-500.0,0.000194,2]
[369954213,1751795455797,-741.0,0.000194,2]
[369954214,1751795455807,-500.0,0.000194,2]
[369954215,1751795455817,-500.0,0.000194,2]
[369954216,1751795455832,-500.0,0.000194,2]
[369954217,1751795455847,-500.0,0.000194,2]
[369954218,1751795455857,-500.0,0.000194,2]
[369954219,1751795455866,-500.0,0.000194,2]
[369954220,1751795455875,-500.0,0.000194,2]
[369954221,1751795455884,-500.0,0.000194,2]
[369954222,1751795455893,-500.0,0.000194,2]
[369954223,1751795455903,-500.0,0.000194,2]
[369954224,1751795455913,-500.0,0.000194,2]
[369954225,1751795455922,-500.0,0.000194,2]
[369954226,1751795455931,-500.0,0.000194,2]
[369954227,1751795455940,-500.0,0.000194,2]
[369954228,1751795455949,-500.0,0.000194,2]
[369954229,1751795455958,-500.0,0.000194,2]
[369954230,1751795455968,-500.0,0.000194,2]
[369954231,1751795455977,-500.0,0.000194,2]
[369954232,1751795455987,-500.0,0.000194,2]
[369954233,1751795455998,-500.0,0.000194,2]
[369954234,1751795456007,-500.0,0.000194,2]
[369954235,1751795456016,-500.0,0.000194,2]
[369954236,1751795456025,-500.0,0.000194,2]
[369954237,1751795456034,-500.0,0.000194,2]
[369954238,1751795456044,-500.0,0.000194,2]
[369954239,1751795456053,-500.0,0.000194,2]
[369954240,1751795456063,-500.0,0.000194,2]
[369954241,1751795456072,-500.0,0.000194,2]
[369954242,1751795456082,-500.0,0.000194,2]
[369954243,1751795456092,-500.0,0.000194,2]
[369954244,1751795456102,-500.0,0.000194,2]
[369954245,1751795456112,-500.0,0.000194,2]
[369954246,1751795456122,-500.0,0.000194,2]
[369954247,1751795456132,-500.0,0.000194,2]
[369954248,1751795456142,-500.0,0.000194,2]
[369954249,1751795456153,-500.0,0.000194,2]
[369954250,1751795456162,-500.0,0.000194,2]
[369954251,1751795456172,-500.0,0.000194,2]
[369954252,1751795456184,-500.0,0.000194,2]
[369954253,1751795456193,-500.0,0.000194,2]
[369954254,1751795456203,-500.0,0.000194,2]
[369954255,1751795456212,-500.0,0.000194,2]
[369954256,1751795456222,-500.0,0.000194,2]
[369954257,1751795456231,-500.0,0.000194,2]
[369954258,1751795456240,-500.0,0.000194,2]
[369954259,1751795456249,-500.0,0.000194,2]
[369954260,1751795456259,-500.0,0.000194,2]
[369954261,1751795456268,-500.0,0.000194,2]
[369954262,1751795456277,-500.0,0.000194,2]
[369954263,1751795456286,-500.0,0.000194,2]
[369954264,1751795456295,-500.0,0.000194,2]
[369954265,1751795456304,-500.0,0.000194,2]
[369954266,1751795456313,-500.0,0.000194,2]
[369954267,1751795456323,-500.0,0.000194,2]
[369954268,1751795456334,-500.0,0.000194,2]
[369954269,1751795456344,-500.0,0.000194,2]
[369954270,1751795456353,-500.0,0.000194,2]
[369954271,1751795456363,-500.0,0.000194,2]
[369954272,1751795456373,-500.0,0.000194,2]
[369954273,1751795456382,-500.0,0.000194,2]
[369954274,1751795456391,-500.0,0.000194,2]
[369954275,1751795456400,-500.0,0.000194,2]
[369954276,1751795456410,-500.0,0.000194,2]
[369954277,1751795456419,-500.0,0.000194,2]
[369954278,1751795456429,-500.0,0.000194,2]
[369954279,1751795456438,-500.0,0.000194,2]
[369954280,1751795456447,-500.0,0.000194,2]
[369954281,1751795456457,-500.0,0.000194,2]
[369954282,1751795456468,-500.0,0.000194,2]
[369954283,1751795456477,-663.0,0.000194,2]
[369954284,1751795456487,-377.0,0.000194,2]
[369954285,1751795456498,-966.0,0.000194,2]
[369954286,1751795456507,-2085.44,0.00019426,2]
[369954287,1751795456517,-349.0,0.0001943,2]
[369954288,1751795456528,-400.78682464,0.00019432,2]
[369954289,1751795456538,-212.0,0.0001944,2]
[369954290,1751795456549,-211.0,0.0001944,2]
[369954291,1751795456558,-500.0,0.00019441,2]
[369954292,1751795456568,-308.18465661,0.00019441,2]
[369954293,1751795456577,-500.0,0.00019441,2]
[369954294,1751795456587,-500.0,0.00019441,2]
[369954295,1751795456596,-1169.36,0.00019441,2]
[369954296,1751795456606,-573.47,0.00019441,2]
[369954297,1751795456617,-500.0,0.00019441,2]
[369954298,1751795456626,-500.0,0.00019441,2]
[369954299,1751795456635,-500.0,0.00019441,2]
[369954300,1751795456645,-708.0,0.00019442,2]
[369954301,1751795456655,-198024.28485961,0.00019442,2]
[369954302,1751795457419,-1007.0,0.00019442,2]
[369954303,1751795457436,-289.03402449,0.00019442,2]
[369954304,1751795457452,-31578.0,0.00019442,2]
[369954305,1751795457479,-1000.0,0.00019442,2]
[369954306,1751795457495,-22413.41760094,0.00019442,2]
[369954307,1751795457509,-199.16696771,0.00019442,2]
[369954308,1751795457523,-500.0,0.00019442,2]
[369954309,1751795457536,-500.0,0.00019442,2]
[369954310,1751795457550,-151.0,0.00019442,2]
[369954311,1751795457564,-573.47,0.00019442,2]
[369954312,1751795457577,-500.0,0.00019442,2]
[369954313,1751795457591,-1410.9263788,0.00019443,2]
[369954314,1751795457604,-500.0,0.0001945,2]
[369954315,1751795457617,-1169.36,0.0001945,2]
[369954316,1751795457630,-500.0,0.00019451,2]
[369954317,1751795457644,-500.0,0.00019451,2]
[369954318,1751795457657,-500.0,0.00019451,2]
[369954319,1751795457670,-500.0,0.00019451,2]
[369954320,1751795457685,-500.0,0.00019451,2]
[369954321,1751795457699,-500.0,0.00019451,2]
[369954322,1751795457713,-500.0,0.00019451,2]
[369954323,1751795457726,-500.0,0.00019451,2]
[369954324,1751795457739,-1169.36,0.00019451,2]
[369954325,1751795457753,-1169.36,0.00019451,2]
[369954326,1751795457768,-573.47,0.00019451,2]
[369954327,1751795457782,-573.47,0.00019451,2]
[369954328,1751795457795,-573.47,0.00019451,2]
[369954329,1751795457809,-500.0,0.00019451,2]
[369954330,1751795457824,-500.0,0.00019451,2]
[369954331,1751795457838,-500.0,0.00019451,2]
[369954332,1751795457851,-500.0,0.00019451,2]
[369954333,1751795457865,-318.63,0.00019451,2]
[369954334,1751795457879,-500.0,0.00019451,2]
[369954335,1751795457893,-500.0,0.00019452,2]
[369954336,1751795457907,-150.0,0.00019452,2]
[369954337,1751795457921,-875.0,0.00019452,2]
[369954338,1751795457936,-150.0,0.00019452,2]
[369954339,1751795457951,-552.0,0.00019452,2]
[369954340,1751795457964,-200.0,0.00019452,2]
[369954341,1751795457977,-200.0,0.00019452,2]
[369954342,1751795457991,-200.0,0.00019452,2]
[369954343,1751795458005,-200.0,0.00019452,2]
[369954344,1751795458018,-150.0,0.00019452,2]
[369954345,1751795458032,-661.0,0.00019452,2]
[369954346,1751795458045,-500.0,0.00019452,2]
[369954347,1751795458058,-500.0,0.00019452,2]
[369954348,1751795458071,-500.0,0.00019452,2]
[369954349,1751795458084,-500.0,0.00019452,2]
[369954350,1751795458098,-500.0,0.00019452,2]
[369954351,1751795458112,-500.0,0.00019452,2]
[369954352,1751795458125,-553.16000665,0.00019452,2]
[369954353,1751795458139,-1474.834704,0.00019452,2]
[369954354,1751795458153,-460.0,0.00019452,2]
[369954355,1751795458168,-460.0,0.00019452,2]
[369954356,1751795458183,-460.0,0.00019452,2]
[369954357,1751795458198,-460.0,0.00019452,2]
[369954358,1751795458214,-460.0,0.00019452,2]
[369954359,1751795458225,-460.0,0.00019452,2]
[369954360,1751795458238,-461.86217966,0.00019452,2]
[369954361,1751795458248,-491.64379524,0.00019452,2]
[369954362,1751795458257,-460.0,0.00019452,2]
[369954363,1751795458267,-460.0,0.00019452,2]
[369954364,1751795458275,-460.0,0.00019452,2]
[369954365,1751795458285,-305.43641397,0.00019452,2]
[369954366,1751795458296,-460.0,0.00019452,2]
[369954367,1751795458306,-460.0,0.00019452,2]
[369954368,1751795458315,-260.55355302,0.00019452,2]
[369954369,1751795459609,-987.17,0.00019178,2]
[369954370,1751795459619,-286.38763095,0.00019178,2]
[369954371,1751795459630,-173.61236905,0.00019178,2]
[369954372,1751795459640,-226.38763095,0.00019178,2]
[369954373,1751795459656,-282.49,0.00019178,2]
[369954374,1751795459699,-27.37236905,0.00019178,2]
[369954375,1751795459709,-460.0,0.00019178,2]
[369954376,1751795459718,-210.32917796,0.00019178,2]
[369954377,1751795459792,-289.67082204,0.00019178,2]
[369954378,1751795459802,-160.41162565,0.00019178,2]
[369954379,1751795459822,-299.58837435,0.00019178,2]
[369954380,1751795459834,-500.0,0.00019178,2]
[369954381,1751795459843,-277.24550558,0.00019178,2]
[369954382,1751795459855,-222.75449442,0.00019178,2]
[369954383,1751795459867,-460.0,0.00019178,2]
[369954384,1751795459876,-460.0,0.00019178,2]
[369954385,1751795459885,-500.0,0.00019178,2]
[369954386,1751795459895,-357.7833095,0.00019443,2]
[369954387,1751795459906,-199.44644698,0.00019452,2]
[369954388,1751795459916,-404.10585351,0.00019452,2]
[369954389,1751795459927,-55.89414649,0.00019452,2]
[369954390,1751795459936,-460.0,0.00019452,2]
[369954391,1751795459946,-184.10585351,0.00019452,2]
[369954418,1751796281984,258.75,0.00013699,2]
[369954425,1751796631832,-500.0,0.00017064,2]
[369954426,1751796631842,-245.63987481,0.00017064,2]
[369954427,1751796631855,-254.36012519,0.00017064,2]
[369954428,1751796631865,-500.0,0.00017064,2]
[369954429,1751796631875,-1000.0,0.00017867,2]
[369954430,1751796631884,-307.03462105,0.000181,2]
[369954431,1751796631895,-13.96537895,0.000181,2]